[Event "FIDE CB Open 2022"]
[Site "Ceske Budejovice"]
[Date "2022.07.05"]
[Round "5.29"]
[White "Hurtik, Matej"]
[Black "Simunek, Jakub Simon"]
[Result "0-1"]
[ECO "C08"]
[WhiteElo "2018"]
[BlackElo "1887"]
[Annotator "TA"]
[PlyCount "55"]
[EventDate "2022.07.01"]
[EventType "swiss"]
[EventCountry "CZE"]
[SourceTitle "playchess.com"]
[Source "ChessBase"]
[SourceQuality "1"]
[TimeControl "40/5400+30:1800+30"]

{[%evp 21,55,0,0,0,26,0,0,-20,-19,-19,-25,-23,7,9,25,14,31,16,24,24,24,24,36,0,28,18,43,-8,-8,-20,35,-27,-20,-133,-111,-626]} 1. e4 {[%emt 0:00:11]} e6 {[%emt 0:00:15]} 2. d4 {[%emt 0:00:16]} d5 {[%emt 0:00:04]} 3. Nd2 {[%emt 0:00:25]} a6 {[%emt 0:00:15]} 4. Ngf3 {[%emt 0:01:57]} c5 {[%emt 0:00:06]} 5. exd5 {[%emt 0:01:27]} exd5 {[%emt 0:00:11]} 6. Be2 {[%emt 0:00:02]} Nf6 {[%emt 0:03:16]} 7. O-O {[%emt 0:00:04]} Be7 {[%emt 0:00:05][%cal Bf8e7,Be7c5,Bc5b6][%mdl 32]} 8. dxc5 {[%emt 0:00:08]} Bxc5 {[%emt 0:00:08]} 9. Nb3 {[%emt 0:00:10]} Bb6 {[%emt 0:00:03]} 10. Bg5 {[%emt 0:01:43]} O-O {[%emt 0:04:34]} 11. Nbd4 {[%emt 0:11:21]} Nc6 {[%emt 0:03:45]} 12. c3 {[%emt 0:04:18] C08: French Tarrasch: 3...c5 4 exd5 exd5 sidelines.} Qd6 {[%emt 0:06:09]} 13. Bh4 {[%emt 0:16:40]} Ne4 {[%emt 0:07:16]} 14. Bg3 {[%emt 0:19:37] The position is equal.} Nxg3 {[%emt 0:00:56]} 15. hxg3 {[%emt 0:00:09]} Bg4 {[%emt 0:09:12] [#]} 16. Qd3 $146 {[%emt 0:02:41]} ({Predecessor:} 16. Re1 Rad8 17. Qd2 Bxf3 18. Bxf3 Nxd4 19. cxd4 Rfe8 20. Rac1 g6 21. Red1 Rc8 22. Rxc8 Rxc8 {½-½ (78) He,A (2337)-Svane,F (2421) Tornelo INT 2020}) 16... Nxd4 {[%emt 0:08:36]} 17. Nxd4 {[%emt 0:02:09]} Bxd4 {[%emt 0:01:20]} 18. Bxg4 {[%emt 0:00:44]} Bb6 {[%emt 0:00:15]} 19. Bf5 {[%emt 0:02:40]} g6 {[%emt 0:00:08]} 20. Be4 {[%emt 0:00:06]} Rad8 {[%emt 0:02:02]} 21. Rad1 {[%emt 0:00:03][%cal Re4d5]} d4 $1 {[%emt 0:00:40]} 22. Qf3 {[%emt 0:22:46]} Qc5 {[%emt 0:08:57]} 23. Bxb7 {[%emt 0:05:20]} dxc3 {[%emt 0:00:06]} 24. Rc1 {[%emt 0:00:03]} (24. bxc3 $14 Ba5 25. Bxa6) 24... Rd2 $36 {[%emt 0:10:39][%mdl 2048] [#] And now ...c2 would win. Black fights for an advantage.} 25. Rxc3 {[%emt 0:03:54]} Qe5 {[%emt 0:00:06]} ({Black should play} 25... Qa5 $11) 26. Rcc1 {[%emt 0:04:04]} (26. Bxa6 $14 Rxb2 27. Rc6) 26... Qxb2 {[%emt 0:01:43][%cal Od2f2] Threatens to win with ...Rxf2!} 27. Rce1 {[%emt 0:00:31]} (27. Rc6 $11 {keeps the balance.}) 27... Qxa2 $17 {[%emt 0:01:11] Black is more active.} 28. Bd5 $2 {[%emt 0:00:16][%mdl 8192] Weighted Error Value: White=0.33/Black=0.13 (very precise)} 0-1

[Event "FIDE CB Open 2022"]
[Site "Ceske Budejovice"]
[Date "2022.07.05"]
[Round "5.30"]
[White "Radovic, Stefan"]
[Black "Koc, Azra Ece"]
[Result "1-0"]
[ECO "C54"]
[WhiteElo "2018"]
[BlackElo "1867"]
[Annotator "TA"]
[PlyCount "75"]
[EventDate "2022.07.01"]
[EventType "swiss"]
[EventCountry "CZE"]
[SourceTitle "playchess.com"]
[Source "ChessBase"]
[SourceQuality "1"]
[TimeControl "40/5400+30:1800+30"]

{[%evp 18,75,21,22,18,12,0,6,1,7,44,34,59,45,58,56,54,44,39,27,25,36,62,1,27,14,13,0,26,22,34,40,136,150,191,97,113,113,678,82,156,144,147,113,216,121,152,120,130,109,289,297,1143,1135,29991,928,29956,6487,29989,1767]} 1. e4 {[%emt 0:00:44]} e5 {[%emt 0:00:05]} 2. Nf3 {[%emt 0:00:03]} Nc6 {[%emt 0:00:03]} 3. Bc4 {[%emt 0:00:05]} Bc5 {[%emt 0:00:16]} 4. c3 {[%emt 0:00:06]} Nf6 {[%emt 0:01:05]} 5. d4 {[%emt 0:00:05]} exd4 {[%emt 0:03:59]} 6. e5 {[%emt 0:00:05]} d5 {[%emt 0:03:12]} 7. Bb5 {[%emt 0:00:07]} Ne4 {[%emt 0:02:15]} 8. cxd4 {[%emt 0:00:07]} Bb4+ {[%emt 0:01:56]} 9. Bd2 {[%emt 0:09:50]} Bxd2+ {[%emt 0:12:10]} 10. Nbxd2 {[%emt 0:01:28]} Bd7 {[%emt 0:04:35] C54: Giuoco Piano: 4 c3 Nf6, main lines with 5 d4 and 5 d3.} 11. Bd3 {[%emt 0:20:43]} Bf5 {[%emt 0:05:40][%cal Oe4f2]} 12. Qe2 {[%emt 0:06:22][%cal Rd2e4]} Nxd2 {[%emt 0:14:36] The position is equal.} 13. Qxd2 {[%emt 0:00:13] [#]} Qd7 $146 {[%emt 0:03:28]} (13... Be4 $5 {[%cal Re4f3]}) ({Predecessor:} 13... Bxd3 14. Qxd3 O-O 15. O-O Qe7 16. a3 Nd8 17. Rac1 Ne6 18. Nd2 c6 19. f4 Qh4 {1-0 (32) Demidov,J (1891)-Aura,K (1986) Helsinki 2013}) 14. Rc1 {[%emt 0:07:17]} a6 {[%emt 0:04:21] Inhibits Bb5.} 15. O-O {[%emt 0:07:10]} O-O {[%emt 0:07:19]} 16. Bxf5 {[%emt 0:13:47]} Qxf5 {[%emt 0:00:06]} 17. Rc5 {[%emt 0:00:26]} Rad8 {[%emt 0:02:57]} 18. b4 {[%emt 0:08:45]} f6 {[%emt 0:03:02][%cal Rf6e5]} 19. Re1 {[%emt 0:02:00]} Rfe8 {[%emt 0:01:45][%cal Rf6e5]} 20. exf6 {[%emt 0:07:43]} ({White should try} 20. Qb2 $14) 20... Rxe1+ {[%emt 0:00:20]} 21. Qxe1 {[%emt 0:00:21]} Qxf6 {[%emt 0:00:35]} 22. Qd2 {[%emt 0:03:20]} Qf5 {[%emt 0:11:22]} 23. Rc1 {[%emt 0:00:43]} Re8 {[%emt 0:02:09]} 24. a4 {[%emt 0:01:52]} a5 {[%emt 0:05:13]} (24... Qd7 $14) 25. b5 $16 {[%emt 0:03:14]} Nb4 {[%emt 0:00:17]} 26. Ne5 {[%emt 0:00:25] Against Nd3} (26. Rxc7 $18 {Hoping for h4.} Qb1+ 27. Rc1) 26... Re7 {[%emt 0:03:17]} 27. h3 {[%emt 0:00:09]} Qe4 $2 {[%emt 0:02:13][%mdl 8192]} (27... h6 $16) 28. Rc3 $2 {[%emt 0:00:38]} (28. Qg5 $18 {and the rest is easy.} Rxe5 29. dxe5) 28... Qf5 {[%emt 0:03:49]} (28... h6 $142) 29. Rf3 {[%emt 0:00:29]} Qe6 {[%emt 0:00:59]} 30. Kh2 {[%emt 0:03:56] White is more active.} c5 {[%emt 0:00:31]} (30... c6 $16 {was worth a try.}) 31. bxc6 {[%emt 0:00:12]} (31. Qf4 $1 $18 {[%csl Gf3][%cal Rf4f8]} Re8 32. Nf7) 31... bxc6 {[%emt 0:01:03][%cal Oc6c5]} 32. Qf4 {[%emt 0:00:38][%csl Gf3][%cal Rf4f8]} Re8 {[%emt 0:00:09][%cal Oc6c5] Prevents Qf8+.} 33. Qg5 $40 {[%emt 0:01:27][%mdl 128] And now Rf7 would win. Black is in trouble.} Re7 {[%emt 0:01:33] [#] Prevents Rf7.} (33... Nc2 $16) 34. Ng4 $1 $18 {[%emt 0:00:57][%cal Og4h6] Nh6+! would kill now.} ({Weaker is} 34. Qf4 Re8 $16) 34... h6 $2 {[%emt 0:00:30] [#]} (34... Qd6+ 35. Rg3 Kh8) 35. Nxh6+ $1 {[%emt 0:00:48][%mdl 512]} Kh8 {[%emt 0:00:35]} (35... Kh7 36. Nf5) 36. Ng4 {[%emt 0:00:38]} (36. Rf8+ $142 Kh7 37. Nf5 Nd3 38. Qh4+ Kg6 39. Nxe7+ Qxe7 40. Qxe7 Nf4 41. Rxf4 Kh6 42. Rh4+ Kg6 43. Rg4+ Kh7 44. Qxg7#) 36... Qd6+ {[%emt 0:00:26]} 37. g3 {[%emt 0:00:09] Intending Rf8+ and mate.} Qd8 {[%emt 0:00:35] [#]} 38. Rf7 {[%emt 0:00:50] Weighted Error Value: White=0.49/Black=1.19} (38. Nf6 $142 $1 {[%mdl 512]} gxf6 39. Qxf6+ Kh7 40. Qh4+ Kg8 41. Qg5+ Kh8 42. Rf4 Qg8 43. Qxe7) 1-0

[Event "FIDE CB Open 2022"]
[Site "Ceske Budejovice"]
[Date "2022.07.05"]
[Round "5.31"]
[White "Rosol, Alexander"]
[Black "Simacek, Vaclav"]
[Result "1-0"]
[ECO "B00"]
[WhiteElo "2001"]
[BlackElo "1856"]
[Annotator "TA"]
[PlyCount "87"]
[EventDate "2022.07.01"]
[EventType "swiss"]
[EventCountry "CZE"]
[SourceTitle "playchess.com"]
[Source "ChessBase"]
[SourceQuality "1"]
[TimeControl "40/5400+30:1800+30"]

{[%evp 9,87,20,30,30,13,6,0,-14,-15,-8,-14,-13,0,-9,0,-6,0,-20,-21,-23,-8,-100,-103,-113,-110,-109,-8,-6,22,36,23,12,7,6,130,131,124,131,234,220,245,242,232,236,352,337,566,557,671,665,637,639,629,614,617,613,704,693,658,695,725,680,731,695,706,700,756,758,1104,1102,1574,831,815,726,867,859,1015,962,29981,29982]} 1. e4 {[%emt 0:00:07]} Nc6 {[%emt 0:00:13]} 2. d4 {[%emt 0:00:46]} d5 {[%emt 0:00:06]} 3. Nc3 {[%emt 0:00:22]} dxe4 {[%emt 0:00:21]} 4. d5 {[%emt 0:00:30]} Nb8 {[%emt 0:00:33]} 5. Nxe4 {[%emt 0:00:26]} Nf6 {[%emt 0:01:26]} 6. Nxf6+ {[%emt 0:00:28] B00: Queen's Fianchetto Defence, Nimzowitsch Defence.} exf6 {[%emt 0:01:18]} 7. Bb5+ {[%emt 0:03:34] [#]} c6 $146 {[%emt 0:01:07]} ({Predecessor:} 7... Nd7 8. Qe2+ Be7 9. Nf3 O-O 10. O-O Nb6 11. Bc4 Re8 12. Rd1 Bc5 13. Qd3 Qd6 14. Bb3 Bg4 15. h3 Bh5 16. c4 a5 17. a3 Qg3 18. Nd4 Re1+ {0-1 (18) Robbins,K (1514)-Bruening,R (1576) IECC email 2001}) 8. Qe2+ {[%emt 0:00:18] The position is equal.} Be7 $1 {[%emt 0:01:16] [#] aiming for ...Qa5+.} 9. dxc6 {[%emt 0:02:43]} Nxc6 {[%emt 0:02:24]} 10. Nf3 {[%emt 0:04:41]} O-O {[%emt 0:00:20]} 11. O-O {[%emt 0:02:38]} Re8 {[%emt 0:04:09]} 12. Rd1 {[%emt 0:23:46]} Qc7 {[%emt 0:03:51]} 13. Nd4 {[%emt 0:10:36]} Bd7 {[%emt 0:04:02]} 14. Be3 {[%emt 0:07:36]} Bd6 {[%emt 0:04:38]} 15. Qh5 {[%emt 0:02:31]} (15. h3 $11) 15... Re5 $17 {[%emt 0:00:48]} 16. Qh4 {[%emt 0:02:24]} g5 {[%emt 0:17:00]} 17. Qh6 {[%emt 0:01:42] Hoping for Bd3.} Bf8 {[%emt 0:00:06]} ({Better is} 17... Nxd4 $17 18. Bxd4 Bxb5 19. Qxf6 Rae8 20. Bxe5 Bxe5 21. Qxg5+ Kh8) 18. Qh5 $11 {[%emt 0:02:14]} (18. Qxf6 $2 Bg7 19. Qf3 Nxd4 20. Bxd4 Rxb5 $19) 18... Nxd4 {[%emt 0:13:29]} 19. Bxd7 {[%emt 0:01:23]} Ne6 {[%emt 0:03:48]} 20. Ba4 {[%emt 0:01:58] Black must now prevent Rd7.} b5 {[%emt 0:00:17]} 21. Bb3 $40 {[%emt 0:01:56][%mdl 128] White mounts an attack.} Ng7 {[%emt 0:03:21]} (21... Re8 $11) 22. Qf3 $16 {[%emt 0:00:47][%csl LRa8,LRf6] White is more active. White now steadily converts the win.} Rae8 {[%emt 0:06:01]} 23. Qxf6 {[%emt 0:11:22]} Nh5 {[%emt 0:01:09]} (23... Bc5 $16 24. Bxc5 (24. Bxg5 Rf5 $11) 24... Rxc5) 24. Qf3 $18 {[%emt 0:00:58]} Nf4 {[%emt 0:00:46]} 25. g3 {[%emt 0:02:37]} ({Resist} 25. Bxf4 $6 gxf4 26. h3 (26. Qxf4 $2 Re1+ 27. Rxe1 Rxe1+ 28. Rxe1 Qxf4 $19) 26... Bc5) 25... Ne6 {[%emt 0:04:24]} 26. c3 {[%emt 0:02:25]} Bc5 {[%emt 0:03:59]} (26... a5 $142 27. Rd5 Qc6) 27. Bd4 {[%emt 0:02:07]} g4 $2 {[%emt 0:07:29] [#]} (27... Bxd4 28. cxd4 g4 29. Qxg4+ Rg5) 28. Bxe5 $1 {[%emt 0:00:42]} Qxe5 {[%emt 0:01:47]} (28... gxf3 29. Bxc7) 29. Qxg4+ {[%emt 0:00:28]} Kh8 {[%emt 0:00:10]} 30. Bxe6 {[%emt 0:00:54]} fxe6 {[%emt 0:00:43]} 31. Rd3 {[%emt 0:03:25][%cal Bd1d3,Bd3f3,Bf3f4,Bf4e4,Be4e3,Be3e2][%mdl 32]} Rg8 {[%emt 0:08:10]} 32. Qd1 {[%emt 0:00:28]} h5 {[%emt 0:03:50]} 33. Rf3 {[%emt 0:02:07]} h4 {[%emt 0:01:04]} 34. Qd2 {[%emt 0:00:17][%cal Rd2h6]} Qh5 {[%emt 0:01:02] Inhibits Qh6+.} 35. Kg2 {[%emt 0:03:00]} h3+ {[%emt 0:00:39]} 36. Kg1 {[%emt 0:00:09]} Rg7 {[%emt 0:01:38]} 37. Rf4 {[%emt 0:00:21] Qd8+ is the strong threat.} Be7 {[%emt 0:00:25] Inhibits Qd8+.} 38. Re1 {[%emt 0:00:27]} e5 {[%emt 0:00:24]} 39. Qd5 $1 {[%emt 0:00:36][%csl LRb5,LRe5]} Rg5 {[%emt 0:01:10]} 40. Rfe4 {[%emt 0:01:25][%cal Re4e5]} Bf6 {[%emt 0:00:31]} 41. R4e3 {[%emt 0:30:42]} Qg6 {[%emt 0:05:36]} 42. Qxb5 {[%emt 0:00:00]} Qc2 {[%emt 0:04:00]} 43. Qa6 {[%emt 0:00:00]} Rf5 {[%emt 0:01:14]} 44. R3e2 {[%emt 0:00:00] Weighted Error Value: White=0.09 (flawless) /Black=0.41} 1-0

[Event "FIDE CB Open 2022"]
[Site "Ceske Budejovice"]
[Date "2022.07.05"]
[Round "5.32"]
[White "Zezula, Jakub"]
[Black "Vilimek, Vit"]
[Result "1-0"]
[ECO "B52"]
[WhiteElo "1831"]
[BlackElo "1996"]
[Annotator "TA"]
[PlyCount "109"]
[EventDate "2022.07.01"]
[EventType "swiss"]
[EventCountry "CZE"]
[SourceTitle "playchess.com"]
[Source "ChessBase"]
[SourceQuality "1"]
[TimeControl "40/5400+30:1800+30"]

{[%evp 9,109,11,31,13,20,31,33,30,31,31,150,153,158,164,146,110,128,39,31,43,45,46,93,86,126,86,95,95,149,149,155,150,297,303,301,285,237,142,198,189,340,421,421,415,366,339,515,410,478,368,347,343,530,498,737,783,1105,802,635,522,642,246,249,3,3,3,182,3,35,35,277,8,5583,0,291,291,322,291,12843,29958,29957,29962,29957,29961,29964,29963,29966,29967,29967,29970,29966,29964,29971,29975,29975,29976,29975,29976,29975,29972,29988,29989]} 1. e4 {[%emt 0:00:06]} c5 {[%emt 0:00:01]} 2. Nf3 {[%emt 0:00:09]} d6 {[%emt 0:00:06]} 3. Bb5+ {[%emt 0:01:00]} Bd7 {[%emt 0:00:07]} 4. Bxd7+ {[%emt 0:00:05]} Qxd7 {[%emt 0:00:10]} 5. O-O {[%emt 0:00:18]} g6 {[%emt 0:00:45]} 6. Re1 {[%emt 0:00:16] B52: Sicilian: Moscow Variation with 3...Bd7.} Nc6 {[%emt 0:01:16]} 7. c3 {[%emt 0:00:47]} Bg7 {[%emt 0:03:08]} 8. d4 {[%emt 0:02:43] White is slightly better.} cxd4 {[%emt 0:14:30]} 9. cxd4 {[%emt 0:00:10] [#]} d5 $146 {[%emt 0:00:23] [#]} ({Better is} 9... Nf6 $14) ({Predecessor:} 9... Nf6 10. Nc3 O-O 11. h3 e6 12. Bg5 Rac8 13. Qe2 Na5 14. Rad1 a6 15. e5 Nd5 16. Nxd5 exd5 17. e6 fxe6 18. Qxe6+ Qxe6 19. Rxe6 {1-0 (46) Bacrot,E (2678)-Saatdjian,S (2131) Chalons en Champagne 2021}) 10. exd5 $1 $16 {[%emt 0:09:01]} Nb4 {[%emt 0:01:53]} 11. Nc3 {[%emt 0:06:43] Ne5 is the strong threat.} Nxd5 {[%emt 0:05:05]} 12. Ne5 {[%emt 0:07:25]} Bxe5 {[%emt 0:00:23]} 13. dxe5 {[%emt 0:05:05]} (13. Rxe5 $16 Nb6 14. Qf3) 13... Nxc3 $14 {[%emt 0:04:29]} 14. Qxd7+ {[%emt 0:01:56]} Kxd7 {[%emt 0:00:01]} 15. bxc3 {[%emt 0:00:02]} Rc8 {[%emt 0:12:09]} (15... Ke6 $14) 16. Be3 $16 {[%emt 0:04:08]} a6 {[%emt 0:01:31]} 17. Rad1+ {[%emt 0:30:49]} Ke8 {[%emt 0:01:05]} 18. Rd3 {[%emt 0:09:17] 0x0.001e39e0751fdp-1022s more active pieces. The black rooks are badly placed.} Rd8 {[%emt 0:26:27]} (18... h5 $142) 19. Red1 {[%emt 0:00:22][%csl Gd1][%cal Rd3d8] [#]} Rxd3 {[%emt 0:15:56]} 20. Rxd3 {[%emt 0:00:18][%mdl 4096] Endgame Black must now prevent c4. KRB-KRN} e6 {[%emt 0:00:01]} (20... h5 $16 21. Bb6 Kf8 22. Rd8+ Kg7) 21. Bb6 $18 {[%emt 0:05:02] aiming for Rd8+.} Kf8 {[%emt 0:02:08]} 22. Rd7 {[%emt 0:03:44]} Kg7 {[%emt 0:00:28]} 23. Rxb7 {[%emt 0:00:07]} (23. Bd8 $18 g5 24. Bxg5) 23... Nh6 {[%emt 0:00:06]} (23... Ne7 $16 {was called for.}) 24. c4 {[%emt 0:00:48][%cal Bc3c4,Bc4c5][%mdl 32]} Ng4 $2 {[%emt 0:04:36]} (24... Rc8 {might work better.}) 25. h3 {[%emt 0:00:23]} Nh6 {[%emt 0:01:11]} 26. g4 {[%emt 0:00:13]} Rc8 {[%emt 0:01:10]} 27. c5 {[%emt 0:00:45]} Rc6 {[%emt 0:01:18]} (27... Ng8 $142 28. f4 h6) 28. Ra7 {[%emt 0:03:51]} Ng8 {[%emt 0:03:32]} 29. Rxa6 {[%emt 0:00:23]} Ne7 {[%emt 0:00:30]} 30. a4 {[%emt 0:00:30]} Nd5 {[%emt 0:00:30]} (30... Rc8 $142 31. Kg2 Nc6) 31. a5 {[%emt 0:00:30]} h5 {[%emt 0:00:30]} (31... Rc8 $142 32. Ra7 Nb4) 32. Ra8 {[%emt 0:00:30]} Nc3 {[%emt 0:00:00]} 33. Kf1 {[%emt 0:00:00]} Ne4 {[%emt 0:00:00]} 34. gxh5 {[%emt 0:00:00]} gxh5 {[%emt 0:00:00]} 35. Kg2 $2 {[%emt 0:00:00]} (35. Ra7 Nxc5 36. Rc7 Rxc7 37. Bxc7) 35... Nxc5 {[%emt 0:00:00]} 36. Bxc5 $2 {[%emt 0:00:00]} (36. Ra7 $18) 36... Rxc5 {[%emt 0:00:00] KR-KR} 37. f4 {[%emt 0:00:00]} Rc4 $2 {[%emt 0:00:00]} (37... Kg6 $11) 38. Kg3 $2 {[%emt 0:00:00]} ({White has to play} 38. a6 $18) 38... Rc3+ {[%emt 0:00:00]} 39. Kh4 {[%emt 0:00:00] Hoping for a6.} Ra3 $2 {[%emt 0:00:00]} ({Black should try} 39... Kg6 $14) 40. a6 $2 {[%emt 0:00:00]} (40. Kxh5 $18 {Threatens to win with h4.} Rxh3+ 41. Kg4) 40... Ra4 $2 {[%emt 0:00:00][%mdl 8192]} (40... Kg6 $11) 41. Kg3 $2 {[%emt 0:17:36]} (41. Kg5 $18 h4 42. a7) 41... Ra5 $2 {[%emt 0:02:55][%mdl 8192]} (41... Ra3+ $11 42. Kh4 Kg6) 42. a7 {[%emt 0:00:30]} Ra4 {[%emt 0:00:30]} 43. Kh4 {[%emt 0:00:30]} Rxf4+ $2 {[%emt 0:00:02]} (43... Ra3 44. f5 exf5) 44. Kxh5 {[%emt 0:00:11]} Ra4 {[%emt 0:00:03] White mates.} 45. Kg5 {[%emt 0:00:15]} Ra5 {[%emt 0:00:01]} 46. Kf4 {[%emt 0:00:03]} Ra4+ {[%emt 0:00:01]} 47. Ke3 {[%emt 0:00:30]} Kh7 {[%emt 0:00:00]} 48. h4 {[%emt 0:00:00][%cal Bh3h4,Bh4h5][%mdl 32]} Ra1 {[%emt 0:02:42]} 49. h5 {[%emt 0:00:00]} Kg7 {[%emt 0:00:30]} 50. Kd4 {[%emt 0:00:00]} Ra4+ {[%emt 0:02:38]} 51. Kc5 {[%emt 0:00:00]} Ra6 {[%emt 0:00:30]} 52. Kb5 {[%emt 0:00:01]} Ra1 {[%emt 0:00:30]} 53. Kc6 {[%emt 0:00:06]} Ra2 {[%emt 0:01:24]} 54. Kd7 {[%emt 0:00:12]} Rb2 {[%emt 0:13:32]} 55. Rb8 {[%emt 0:01:03] Weighted Error Value: White=0.53/Black=0.48} 1-0

[Event "FIDE CB Open 2022"]
[Site "Ceske Budejovice"]
[Date "2022.07.05"]
[Round "5.33"]
[White "Zauner, Christoph"]
[Black "Musil, Vitezslav"]
[Result "1-0"]
[ECO "A45"]
[WhiteElo "1963"]
[BlackElo "1834"]
[Annotator "TA"]
[PlyCount "59"]
[EventDate "2022.07.01"]
[EventType "swiss"]
[EventCountry "CZE"]
[SourceTitle "playchess.com"]
[Source "ChessBase"]
[SourceQuality "1"]
[TimeControl "40/5400+30:1800+30"]

{[%evp 12,59,85,78,70,88,76,68,58,64,72,51,55,47,47,56,77,28,79,74,70,72,125,123,184,175,209,149,184,164,207,170,232,176,172,189,181,190,255,256,268,256,400,402,619,624,623,630,628,615]} 1. d4 {[%emt 0:00:11]} Nf6 {[%emt 0:00:09]} 2. Bg5 {[%emt 0:00:12]} Ne4 {[%emt 0:00:06]} 3. Bf4 {[%emt 0:00:13]} c5 {[%emt 0:04:46]} 4. f3 {[%emt 0:02:01]} Nf6 {[%emt 0:02:12]} 5. dxc5 {[%emt 0:00:17]} Qa5+ {[%emt 0:00:15]} 6. Nc3 {[%emt 0:04:17][%cal Bb1c3,Bc3b5,Bb5d4,Bd4f5][%mdl 32]} Qxc5 {[%emt 0:01:00]} 7. e4 {[%emt 0:02:32]} Nc6 {[%emt 0:03:00] A45: Trompowsky Attack.} 8. Qd2 {[%emt 0:01:29]} d6 {[%emt 0:03:18]} 9. Nb5 {[%emt 0:11:17]} Qb6 {[%emt 0:05:13] Prevents Nc7+. White is slightly better.} 10. Be3 {[%emt 0:06:14]} Qd8 {[%emt 0:00:12]} 11. Qf2 {[%emt 0:00:38] [#] White is much more active. The black rooks are badly placed.} Nd7 $146 {[%emt 0:03:05]} ({Predecessor:} 11... g6 12. O-O-O Bg7 13. h4 O-O 14. Bc4 Bd7 15. g4 Ne5 16. Na3 Nxc4 17. Nxc4 Be6 {0-1 (44) Reinert,S (2104)-Raddatz,M (2046) Agueimes 2011}) 12. O-O-O $36 {[%emt 0:05:29][%mdl 2048] White fights for an advantage.} a6 {[%emt 0:00:52]} 13. Nd4 {[%emt 0:00:33]} g6 {[%emt 0:04:16]} 14. h4 {[%emt 0:07:02]} (14. Nge2 $16) 14... Bg7 {[%emt 0:03:20]} (14... h5 $11 {keeps the balance.}) 15. h5 $16 {[%emt 0:04:07] Black is on the road to losing.} Qa5 {[%emt 0:00:44]} 16. Bc4 {[%emt 0:10:36]} Nce5 {[%emt 0:11:58]} ({Black should try} 16... Nxd4 17. Bxd4 Qg5+ 18. Kb1 Bxd4 19. Qxd4 Rf8) 17. Bb3 {[%emt 0:00:25]} gxh5 {[%emt 0:00:20]} (17... Nc5 $16) 18. Nf5 $18 {[%emt 0:04:56]} Bf6 {[%emt 0:01:56]} 19. Rxh5 {[%emt 0:03:46] Threatens to win with f4.} Nc5 {[%emt 0:01:43] [#]} 20. Kb1 $1 {[%emt 0:00:59]} Be6 {[%emt 0:09:21]} 21. Nd4 {[%emt 0:07:19]} Nxb3 {[%emt 0:06:23]} (21... Bxb3 {might work better.} 22. Nxb3 Nxb3) 22. Nxe6 {[%emt 0:00:14]} (22. cxb3 $6 Qc7 23. Nge2 Ng6 $16) ({Resist} 22. Nxb3 $6 Qa4 $16) 22... fxe6 {[%emt 0:01:43]} 23. axb3 {[%emt 0:00:11] Strongly threatening f4.} ({Don't take} 23. cxb3 Qb5 $16) 23... Qc7 {[%emt 0:02:27]} 24. Ne2 {[%emt 0:01:10]} Rc8 {[%emt 0:00:48]} (24... Nf7 {was worth a try.} 25. Nf4 Qd7) 25. Nd4 {[%emt 0:00:44]} Kd7 {[%emt 0:11:06]} 26. Qe2 {[%emt 0:00:13] [#] Black must now prevent f4.} Nc6 {[%emt 0:03:56]} (26... Ng6 $142 27. Qd2 b5) 27. Nxc6 {[%emt 0:01:42]} ({Not} 27. Nxe6 Kxe6 28. e5 Nxe5 $16) 27... bxc6 {[%emt 0:06:36]} (27... Qxc6 $142 28. e5 Bg7 29. exd6 exd6) 28. e5 {[%emt 0:00:21] White is clearly winning.} Bg7 {[%emt 0:00:28]} 29. exd6 {[%emt 0:00:09]} exd6 {[%emt 0:00:12]} 30. Bf4 {[%emt 0:00:55] Weighted Error Value: White=0.09 (flawless) /Black=0.37} 1-0